fUSD/lending_fUSD_20250610
["ID","MTS","AMOUNT","RATE_DAILY","PERIOD"]
[365277603,1749574190238,808.22,0.00014301,2]
[365277604,1749574190262,808.22,0.00016565,2]
[365277605,1749574190368,490.0,0.00016438,2]
[365277606,1749574190398,490.0,0.00016438,2]
[365277607,1749574190445,490.0,0.00016602,2]
[365277608,1749574190475,490.0,0.00016438,2]
[365277609,1749574190523,548.54024451,0.00016438,2]
[365277610,1749574190684,490.0,0.00016438,2]
[365277611,1749574190715,490.0,0.00016438,2]
[365277612,1749574190747,490.0,0.00016602,2]
[365277613,1749574191072,490.0,0.00016767,2]
[365277614,1749574191109,490.0,0.00016931,2]
[365277615,1749574191145,490.0,0.00017095,2]
[365277616,1749574191208,490.0,0.00016438,2]
[365277617,1749574191238,327.48,0.00016602,2]
[365277618,1749574191287,490.0,0.00016438,2]
[365277619,1749574191334,341.27,0.00016438,2]
[365277620,1749574191362,490.0,0.00016438,2]
[365277621,1749574191387,490.0,0.00016438,2]
[365277622,1749574191415,490.0,0.00016602,2]
[365277623,1749574191445,476.90340497,0.00016438,2]
[365277625,1749574223320,1006.3953347,0.00016,2]
[365277626,1749574223345,6395.18057016,0.00016,2]
[365277627,1749574223366,10000.0,0.00016,2]
[365277628,1749574223388,10000.0,0.00016,2]
[365277629,1749574223407,5931.42409514,0.00016,2]
[365277631,1749574230740,150.0,0.00021587,120]
[365277637,1749574231827,-500.0,0.00016164,2]
[365277638,1749574231837,-1200.0,0.00016437,2]
[365277639,1749574231847,-13.09659503,0.00016438,2]
[365277640,1749574231855,-490.0,0.00016438,2]
[365277641,1749574231865,-2172.17,0.00016438,2]
[365277642,1749574231874,-490.0,0.00016438,2]
[365277643,1749574231883,-490.0,0.00016438,2]
[365277644,1749574231893,-490.0,0.00016438,2]
[365277645,1749574231906,-490.0,0.00016438,2]
[365277646,1749574231915,-490.0,0.00016438,2]
[365277647,1749574231925,-490.0,0.00016438,2]
[365277648,1749574231935,-490.0,0.00016438,2]
[365277649,1749574231945,-111.03345847,0.00016438,2]
[365277650,1749574231957,-378.96654153,0.00016438,2]
[365277651,1749574231966,-466.13116768,0.00016438,2]
[365277652,1749574231981,-23.86883232,0.00016438,2]
[365277653,1749574231991,-490.0,0.00016438,2]
[365277654,1749574232001,-490.0,0.00016438,2]
[365277655,1749574232011,-490.0,0.00016438,2]
[365277656,1749574232020,-497.690296,0.00016438,2]
[365277657,1749574232029,-490.0,0.00016438,2]
[365277658,1749574232038,-490.0,0.00016438,2]
[365277659,1749574232047,-490.0,0.00016438,2]
[365277660,1749574232057,-470.0,0.00016438,2]
[365277661,1749574232066,-490.0,0.00016438,2]
[365277663,1749574232076,-490.0,0.00016438,2]
[365277665,1749574232087,-490.0,0.00016438,2]
[365277668,1749574232096,-490.0,0.00016438,2]
[365277671,1749574232106,-490.0,0.00016438,2]
[365277674,1749574232115,-504.07,0.00016438,2]
[365277677,1749574232125,-490.0,0.00016438,2]
[365277680,1749574232135,-490.0,0.00016438,2]
[365277682,1749574232145,-490.0,0.00016438,2]
[365277685,1749574232155,-490.0,0.00016438,2]
[365277689,1749574232165,-490.0,0.00016438,2]
[365277691,1749574232175,-490.0,0.00016438,2]
[365277693,1749574232184,-174.37087168,0.00016438,2]
[365277739,1749574237643,-260.79912832,0.00016438,2]
[365277740,1749574237653,-490.0,0.00016438,2]
[365277741,1749574237664,-490.0,0.00016438,2]
[365277742,1749574237675,-490.0,0.00016438,2]
[365277743,1749574237686,-490.0,0.00016438,2]
[365277744,1749574237695,-490.0,0.00016438,2]
[365277745,1749574237705,-490.0,0.00016438,2]
[365277746,1749574237714,-490.0,0.00016438,2]
[365277747,1749574237725,-490.0,0.00016438,2]
[365277748,1749574237734,-490.0,0.00016438,2]
[365277749,1749574237744,-490.0,0.00016438,2]
[365277750,1749574237755,-490.0,0.00016438,2]
[365277751,1749574237766,-490.0,0.00016438,2]
[365277752,1749574237775,-490.0,0.00016438,2]
[365277753,1749574237785,-193.788248,0.00016438,2]
[365277754,1749574237794,-490.0,0.00016438,2]
[365277755,1749574237804,-490.0,0.00016438,2]
[365277756,1749574237813,-490.0,0.00016438,2]
[365277757,1749574237822,-490.0,0.00016438,2]
[365277758,1749574237832,-490.0,0.00016602,2]
[365277759,1749574237842,-490.0,0.00016602,2]
[365277760,1749574237852,-2172.17,0.00016602,2]
[365277761,1749574237861,-491.4,0.00016602,2]
[365277762,1749574237870,-490.0,0.00016602,2]
[365277763,1749574237879,-490.0,0.00016602,2]
[365277764,1749574237889,-490.0,0.00016602,2]
[365277765,1749574237898,-490.0,0.00016602,2]
[365277766,1749574237908,-490.0,0.00016602,2]
[365277767,1749574237918,-490.0,0.00016602,2]
[365277768,1749574237927,-490.0,0.00016602,2]
[365277769,1749574237936,-490.0,0.00016602,2]
[365277770,1749574237945,-490.0,0.00016602,2]
[365277771,1749574237955,-490.0,0.00016602,2]
[365277772,1749574237965,-490.0,0.00016602,2]
[365277773,1749574237975,-490.0,0.00016602,2]
[365277774,1749574237985,-490.0,0.00016602,2]
[365277775,1749574237994,-504.07,0.00016602,2]
[365277776,1749574238003,-490.0,0.00016602,2]
[365277778,1749574238013,-480.0,0.00016602,2]
[365277780,1749574238022,-490.0,0.00016602,2]
[365277782,1749574238032,-490.0,0.00016602,2]
[365277784,1749574238041,-490.0,0.00016602,2]
[365277786,1749574238050,-490.0,0.00016602,2]
[365277788,1749574238060,-240.26,0.00016602,2]
[365277790,1749574238069,-362.44,0.00016602,2]
[365277792,1749574238079,-490.0,0.00016602,2]
[365277794,1749574238088,-490.0,0.00016602,2]
[365277795,1749574238098,-490.0,0.00016602,2]
[365277797,1749574238108,-216.64172155,0.00016602,2]
[365277799,1749574238118,-490.0,0.00016602,2]
[365277801,1749574238127,-490.0,0.00016602,2]
[365277803,1749574238137,-480.0,0.00016602,2]
[365277805,1749574238147,-193.788248,0.00016602,2]
[365277807,1749574238156,-490.0,0.00016602,2]
[365277809,1749574238168,-490.0,0.00016602,2]
[365277812,1749574238178,-490.0,0.00016767,2]
[365277814,1749574238188,-2172.17,0.00016767,2]
[365277816,1749574238197,-490.0,0.00016767,2]
[365277818,1749574238206,-490.0,0.00016767,2]
[365277820,1749574238216,-490.0,0.00016767,2]
[365277821,1749574238225,-490.0,0.00016767,2]
[365277823,1749574238235,-490.0,0.00016767,2]
[365277826,1749574238245,-490.0,0.00016767,2]
[365277828,1749574238255,-490.0,0.00016767,2]
[365277830,1749574238264,-490.0,0.00016767,2]
[365277832,1749574238273,-504.07,0.00016767,2]
[365277834,1749574238283,-490.0,0.00016767,2]
[365277835,1749574238292,-523.46,0.00016767,2]
[365277836,1749574238301,-335.45,0.00016767,2]
[365277837,1749574238309,-490.0,0.00016767,2]
[365277838,1749574238318,-239.6948081,0.00016767,2]
[365277839,1749574238327,-490.0,0.00016767,2]
[365277840,1749574238340,-490.0,0.00016767,2]
[365277841,1749574238350,-490.0,0.00016767,2]
[365277842,1749574238359,-490.0,0.00016767,2]
[365277843,1749574238378,-490.0,0.00016767,2]
[365277844,1749574238393,-490.0,0.00016767,2]
[365277845,1749574238412,-2172.17,0.00016931,2]
[365277846,1749574238426,-490.0,0.00016931,2]
[365277848,1749574238438,-490.0,0.00016931,2]
[365277851,1749574238453,-490.0,0.00016931,2]
[365277853,1749574238466,-386.82955833,0.00016931,2]
[365277856,1749574238480,-490.0,0.00016931,2]
[365277858,1749574238493,-490.0,0.00016931,2]
[365277861,1749574238507,-504.07,0.00016931,2]
[365277863,1749574238521,-603.30256929,0.00016931,2]
[365277865,1749574238532,-378.03,0.00016931,2]
[365277868,1749574238545,-490.0,0.00016931,2]
[365277870,1749574238558,-490.0,0.00016931,2]
[365277872,1749574238572,-490.0,0.00016931,2]
[365277875,1749574238586,-490.0,0.00016931,2]
[365277877,1749574238599,-193.788248,0.00016931,2]
[365277880,1749574238613,-490.0,0.00016931,2]
[365277882,1749574238627,-490.0,0.00016931,2]
[365277885,1749574238641,-2172.17,0.00017095,2]
[365277887,1749574238655,-490.0,0.00017095,2]
[365277890,1749574238669,-490.0,0.00017095,2]
[365277892,1749574238685,-490.0,0.00017095,2]
[365277894,1749574238699,-490.0,0.00017095,2]
[365277897,1749574238711,-490.0,0.00017095,2]
[365277899,1749574238725,-504.07,0.00017095,2]
[365277902,1749574238738,-490.0,0.00017095,2]
[365277904,1749574238756,-490.0,0.00017095,2]
[365277907,1749574238771,-490.0,0.00017095,2]
[365277909,1749574238787,-490.0,0.00017095,2]
[365277911,1749574238798,-490.0,0.00017095,2]
[365277913,1749574238809,-490.0,0.00017095,2]
[365277916,1749574238820,-534.69189065,0.0001713,2]
[365277919,1749574238837,-420.28936495,0.0001726,2]
[365277921,1749574238852,-490.0,0.0001726,2]
[365277923,1749574238862,-490.0,0.0001726,2]
[365277925,1749574238874,-490.0,0.0001726,2]
[365277927,1749574238885,-490.0,0.0001726,2]
[365277930,1749574238898,-618.14,0.0001726,2]
[365277933,1749574238915,-152.07,0.0001726,2]
[365277935,1749574238927,-490.0,0.0001726,2]
[365277937,1749574238938,-490.0,0.0001726,2]
[365277939,1749574238949,-490.0,0.0001726,2]
[365277942,1749574238961,-738.92,0.0001726,2]
[365277944,1749574238973,-934.67,0.0001726,2]
[365277946,1749574238985,-574.28,0.0001726,2]
[365277948,1749574238998,-490.0,0.0001726,2]
[365277951,1749574239018,-490.0,0.0001726,2]
[365277954,1749574239031,-1384.88,0.0001726,2]
[365277956,1749574239043,-490.0,0.0001726,2]
[365277959,1749574239057,-490.0,0.0001726,2]
[365277960,1749574239070,-490.0,0.0001726,2]
[365277963,1749574239083,-1212.07,0.0001726,2]
[365277965,1749574239096,-490.0,0.0001726,2]
[365277967,1749574239108,-319.33,0.0001726,2]
[365277969,1749574239122,-490.0,0.0001726,2]
[365277971,1749574239134,-490.0,0.0001726,2]
[365277974,1749574239148,-490.0,0.0001726,2]
[365277976,1749574239161,-386.18,0.0001726,2]
[365277978,1749574239173,-490.0,0.0001726,2]
[365277981,1749574239186,-490.0,0.0001726,2]
[365277983,1749574239199,-490.0,0.0001726,2]
[365277985,1749574239211,-490.0,0.0001726,2]
[365277988,1749574239223,-490.0,0.0001726,2]
[365277990,1749574239236,-490.0,0.0001726,2]
[365277992,1749574239248,-490.0,0.0001726,2]
[365277995,1749574239260,-490.0,0.0001726,2]
[365277997,1749574239272,-490.0,0.0001726,2]
[365277999,1749574239285,-1273.19,0.0001726,2]
[365278002,1749574239297,-1821.58,0.0001726,2]
[365278004,1749574239309,-490.0,0.0001726,2]
[365278006,1749574239321,-289.58,0.0001726,2]
[365278009,1749574239333,-490.0,0.0001726,2]
[365278011,1749574239349,-490.0,0.0001726,2]
[365278014,1749574239361,-561.47,0.0001726,2]
[365278016,1749574239373,-2204.71,0.0001726,2]
[365278018,1749574239385,-285.94,0.0001726,2]
[365278021,1749574239397,-490.0,0.0001726,2]
[365278023,1749574239410,-490.0,0.0001726,2]
[365278025,1749574239422,-490.0,0.0001726,2]
[365278027,1749574239434,-490.0,0.0001726,2]
[365278030,1749574239446,-490.0,0.0001726,2]
[365278032,1749574239458,-2098.37621481,0.0001726,2]
[365278036,1749574239484,-73.79378519,0.0001726,2]
[365278038,1749574239496,-228.49505111,0.0001726,2]
[365278042,1749574239521,-261.50494889,0.0001726,2]
[365278044,1749574239532,-403.79,0.0001726,2]
[365278046,1749574239544,-578.29,0.0001726,2]
[365278048,1749574239555,-490.0,0.0001726,2]
[365278051,1749574239568,-490.0,0.0001726,2]
[365278053,1749574239580,-504.07,0.0001726,2]
[365278055,1749574239592,-490.0,0.0001726,2]
[365278058,1749574239604,-490.0,0.0001726,2]
[365278060,1749574239615,-490.0,0.0001726,2]
[365278062,1749574239627,-490.0,0.0001726,2]
[365278064,1749574239639,-456.63,0.0001726,2]
[365278067,1749574239652,-208.0,0.00017316,4]
[365278069,1749574239664,-355.21,0.00017424,2]
[365278071,1749574239678,-174.89181066,0.00017424,2]
[365278074,1749574239691,-490.0,0.00017424,2]
[365278076,1749574239703,-490.0,0.00017424,2]
[365278078,1749574239715,-490.0,0.00017424,2]
[365278081,1749574239728,-490.0,0.00017424,2]
[365278083,1749574239741,-490.0,0.00017424,2]
[365278085,1749574239753,-738.92,0.00017424,2]
[365278087,1749574239765,-934.67,0.00017424,2]
[365278089,1749574239777,-574.28,0.00017424,2]
[365278091,1749574239789,-490.0,0.00017424,2]
[365278094,1749574239802,-159.32,0.00017424,2]
[365278096,1749574239813,-1384.88,0.00017424,2]
[365278098,1749574239826,-490.0,0.00017424,2]
[365278100,1749574239835,-490.0,0.00017424,2]
[365278102,1749574239845,-490.0,0.00017424,2]
[365278104,1749574239855,-1212.07,0.00017424,2]
[365278107,1749574239865,-490.0,0.00017424,2]
[365278109,1749574239875,-490.0,0.00017424,2]
[365278111,1749574239885,-427.95,0.00017424,2]
[365278113,1749574239894,-615.81,0.00017424,2]
[365278115,1749574239903,-490.0,0.00017424,2]
[365278117,1749574239913,-490.0,0.00017424,2]
[365278119,1749574239922,-490.0,0.00017424,2]
[365278121,1749574239932,-490.0,0.00017424,2]
[365278123,1749574239941,-490.0,0.00017424,2]
[365278125,1749574239951,-490.0,0.00017424,2]
[365278127,1749574239960,-490.0,0.00017424,2]
[365278129,1749574239970,-490.0,0.00017424,2]
[365278131,1749574239979,-490.0,0.00017424,2]
[365278133,1749574239989,-1273.19,0.00017424,2]
[365278135,1749574239999,-1821.58,0.00017424,2]
[365278137,1749574240008,-458.03,0.00017424,2]
[365278139,1749574240018,-490.0,0.00017424,2]
[365278141,1749574240027,-490.0,0.00017424,2]
[365278143,1749574240036,-561.47,0.00017424,2]
[365278145,1749574240045,-2204.71,0.00017424,2]
[365278147,1749574240055,-477.89,0.00017424,2]
[365278149,1749574240064,-274.42841161,0.00017424,2]
[365278151,1749574240074,-490.0,0.00017424,2]
[365278153,1749574240084,-490.0,0.00017424,2]
[365278155,1749574240094,-211.02,0.00017424,2]
[365278157,1749574240103,-2172.17,0.00017424,2]
[365278159,1749574240113,-490.0,0.00017424,2]
[365278161,1749574240122,-490.0,0.00017424,2]
[365278163,1749574240131,-490.0,0.00017424,2]
[365278165,1749574240141,-504.07,0.00017424,2]
[365278167,1749574240150,-490.0,0.00017424,2]
[365278169,1749574240160,-490.0,0.00017424,2]
[365278171,1749574240170,-490.0,0.00017424,2]
[365278174,1749574240180,-490.0,0.00017424,2]
[365278176,1749574240190,-843.409683,0.00017524,2]
[365278178,1749574240200,-534.69189065,0.00017525,2]
[365278179,1749574240210,-600.0,0.00017534,2]
[365278181,1749574240220,-454.85,0.00017555,2]
[365278183,1749574240230,-909.56,0.00017555,2]
[365278185,1749574240239,-454.85,0.00017555,2]
[365278187,1749574240249,-170.69,0.0001756,2]
[365278189,1749574240258,-170.69,0.0001756,2]
[365278191,1749574240268,-170.69,0.0001756,2]
[365278193,1749574240277,-170.69,0.0001756,2]
[365278195,1749574240287,-170.69,0.0001756,2]
[365278197,1749574240296,-150.0,0.0001756,2]
[365278199,1749574240306,-170.69,0.0001756,2]
[365278201,1749574240315,-490.0,0.00017589,2]
[365278203,1749574240324,-419.94,0.00017589,2]
[365278205,1749574240334,-496.03,0.00017589,2]
[365278207,1749574240343,-200.11,0.00017589,2]
[365278258,1749574240758,-277.94,0.00017589,2]
[365278261,1749574240778,-738.92,0.00017589,2]
[365278265,1749574240797,-934.67,0.00017589,2]
[365278267,1749574240808,-574.28,0.00017589,2]
[365278269,1749574240818,-490.0,0.00017589,2]
[365278271,1749574240827,-1384.88,0.00017589,2]
[365278273,1749574240836,-490.0,0.00017589,2]
[365278275,1749574240845,-490.0,0.00017589,2]
[365278277,1749574240854,-1212.07,0.00017589,2]
[365278278,1749574240863,-490.0,0.00017589,2]
[365278280,1749574240872,-484.63,0.00017589,2]
[365278282,1749574240882,-490.0,0.00017589,2]
[365278284,1749574240891,-490.0,0.00017589,2]
[365278286,1749574240901,-490.0,0.00017589,2]
[365278289,1749574240911,-490.0,0.00017589,2]
[365278291,1749574240920,-490.0,0.00017589,2]
[365278293,1749574240929,-490.0,0.00017589,2]
[365278295,1749574240939,-490.0,0.00017589,2]
[365278297,1749574240949,-162.67,0.00017589,2]
[365278299,1749574240958,-490.0,0.00017589,2]
[365278301,1749574240967,-240.84,0.00017589,2]
[365278303,1749574240977,-1273.19,0.00017589,2]
[365278305,1749574240986,-1821.58,0.00017589,2]
[365278307,1749574240996,-490.0,0.00017589,2]
[365278309,1749574241006,-490.0,0.00017589,2]
[365278311,1749574241015,-561.47,0.00017589,2]
[365278312,1749574241024,-2204.71,0.00017589,2]
[365278314,1749574241034,-490.0,0.00017589,2]
[365278316,1749574241043,-490.0,0.00017589,2]
[365278318,1749574241052,-2172.17,0.00017589,2]
[365278320,1749574241061,-490.0,0.00017589,2]
[365278322,1749574241070,-490.0,0.00017589,2]
[365278324,1749574241079,-490.0,0.00017589,2]
[365278326,1749574241088,-504.07,0.00017589,2]
[365278328,1749574241097,-189.09790839,0.00017589,2]
[365278330,1749574241106,-490.0,0.00017589,2]
[365278332,1749574241115,-490.0,0.00017589,2]
[365278334,1749574241124,-490.0,0.00017589,2]
[365278336,1749574241133,-226.38511431,0.00017653,2]
[365278338,1749574241142,-500.0,0.00017752,2]
[365278340,1749574241151,-931.62,0.00017752,2]
[365278342,1749574241160,-280.06445546,0.00017752,2]
[365278343,1749574241170,-177.15,0.00017753,2]
[365278345,1749574241180,-738.92,0.00017753,2]
[365278347,1749574241189,-934.67,0.00017753,2]
[365278349,1749574241198,-574.28,0.00017753,2]
[365278351,1749574241208,-1384.88,0.00017753,2]
[365278353,1749574241217,-490.0,0.00017753,2]
[365278355,1749574241227,-490.0,0.00017753,2]
[365278357,1749574241236,-1212.07,0.00017753,2]
[365278359,1749574241246,-291.60374292,0.00017753,2]
[365278396,1749574241781,-490.0,0.00016438,2]
[365278398,1749574241791,-490.0,0.00016438,2]
[365278400,1749574241800,-490.0,0.00016602,2]
[365278402,1749574241810,-198.39625708,0.00017753,2]
[365278404,1749574241820,-490.0,0.00017753,2]
[365278406,1749574241829,-490.0,0.00017753,2]
[365278408,1749574241839,-490.0,0.00017753,2]
[365278410,1749574241849,-490.0,0.00017753,2]
[365278412,1749574241859,-212.33,0.00017753,2]
[365278414,1749574241870,-490.0,0.00017753,2]
[365278417,1749574241880,-490.0,0.00017753,2]
[365278419,1749574241889,-490.0,0.00017753,2]
[365278421,1749574241900,-1273.19,0.00017753,2]
[365278423,1749574241909,-1821.58,0.00017753,2]
[365278425,1749574241919,-490.0,0.00017753,2]
[365278427,1749574241928,-490.0,0.00017753,2]
[365278429,1749574241938,-561.47,0.00017753,2]
[365278431,1749574241947,-2204.71,0.00017753,2]
[365278433,1749574241957,-490.0,0.00017753,2]
[365278435,1749574241966,-490.0,0.00017753,2]
[365278437,1749574241976,-2172.17,0.00017753,2]
[365278439,1749574241985,-490.0,0.00017753,2]
[365278441,1749574241995,-490.0,0.00017753,2]
[365278443,1749574242006,-490.0,0.00017753,2]
[365278445,1749574242015,-504.07,0.00017753,2]
[365278447,1749574242026,-416.3,0.00017753,2]
[365278449,1749574242036,-490.0,0.00017753,2]
[365278451,1749574242046,-490.0,0.00017753,2]
[365278453,1749574242056,-250.0,0.00017754,2]
[365278455,1749574242065,-208.0,0.00017771,5]
[365278457,1749574242075,-300.0,0.00017778,2]
[365278459,1749574242084,-600.0,0.0001778,4]
[365278461,1749574242094,-250.0,0.0001778,2]
[365278463,1749574242103,-300.0,0.0001778,2]
[365278465,1749574242114,-500.0,0.00017808,2]
[365278467,1749574242124,-500.0,0.00017808,2]
[365278469,1749574242133,-375.79944211,0.00017808,2]
[365278471,1749574242143,-500.0,0.00017808,2]
[365278473,1749574242152,-500.0,0.00017808,2]
[365278475,1749574242161,-500.0,0.00017808,2]
[365278477,1749574242171,-500.0,0.00017813,2]
[365278480,1749574242181,-420.0,0.00017856,2]
[365278482,1749574242190,-180.34460197,0.000179,2]
[365278484,1749574242199,-700.0,0.000179,6]
[365278486,1749574242209,-365.44247855,0.000179,2]
[365278488,1749574242218,-365.44247854,0.000179,2]
[365278490,1749574242228,-365.44247854,0.000179,2]
[365278492,1749574242238,-365.44247854,0.000179,2]
[365278493,1749574242247,-365.44247854,0.000179,2]
[365278495,1749574242258,-365.44247854,0.000179,2]
[365278496,1749574242267,-365.44247854,0.000179,2]
[365278497,1749574242277,-365.44247854,0.000179,2]
[365278499,1749574242287,-365.44247854,0.000179,2]
[365278501,1749574242296,-1196.0,0.00017902,2]
[365278503,1749574242305,-1196.0,0.00017902,2]
[365278505,1749574242315,-1196.0,0.00017902,2]
[365278507,1749574242324,-1196.0,0.00017902,2]
[365278509,1749574242334,-1196.0,0.00017902,2]
[365278511,1749574242344,-226.38511431,0.00017903,2]
[365278512,1749574242354,-250.31,0.00017907,2]
[365278514,1749574242365,-215.0738,0.00017915,2]
[365278516,1749574242386,-156.587,0.00017915,2]
[365278519,1749574242400,-934.67,0.00017917,2]
[365278521,1749574242409,-574.28,0.00017917,2]
[365278523,1749574242419,-1384.88,0.00017917,2]
[365278525,1749574242428,-490.0,0.00017917,2]
[365278527,1749574242437,-490.0,0.00017917,2]
[365278529,1749574242447,-1212.07,0.00017917,2]
[365278531,1749574242457,-490.0,0.00017917,2]
[365278533,1749574242466,-490.0,0.00017917,2]
[365278535,1749574242475,-490.0,0.00017917,2]
[365278536,1749574242485,-490.0,0.00017917,2]
[365278538,1749574242494,-490.0,0.00017917,2]
[365278541,1749574242504,-490.0,0.00017917,2]
[365278542,1749574242514,-490.0,0.00017917,2]
[365278544,1749574242524,-490.0,0.00017917,2]
[365278546,1749574242533,-1273.19,0.00017917,2]
[365278548,1749574242543,-1821.58,0.00017917,2]
[365278551,1749574242552,-490.0,0.00017917,2]
[365278554,1749574242562,-490.0,0.00017917,2]
[365278556,1749574242571,-561.47,0.00017917,2]
[365278559,1749574242580,-2204.71,0.00017917,2]
[365278561,1749574242590,-490.0,0.00017917,2]
[365278564,1749574242599,-490.0,0.00017917,2]
[365278566,1749574242609,-1809.60847241,0.00017917,2]
[365278570,1749574242626,-362.56152759,0.00017917,2]
[365278572,1749574242636,-490.0,0.00017917,2]
[365278574,1749574242645,-528.68847241,0.00017917,2]
[365278578,1749574242668,-352.01,0.00016602,2]
[365278580,1749574242681,-34.61152759,0.00017917,2]
[365278582,1749574242690,-490.0,0.00017917,2]
[365278584,1749574242699,-504.07,0.00017917,2]
[365278586,1749574242709,-490.0,0.00017917,2]
[365278589,1749574242719,-490.0,0.00017917,2]
[365278591,1749574242729,-534.69189065,0.00017921,2]
[365278593,1749574242738,-1000.0,0.0001793,2]
[365278595,1749574242748,-331.9,0.00017931,2]
[365278597,1749574242758,-152.0,0.00017987,3]
[365278599,1749574242767,-731.0,0.0001799,2]
[365278601,1749574242777,-800.0,0.0001799,2]
[365278603,1749574242786,-800.0,0.0001799,2]
[365278605,1749574242796,-800.0,0.0001799,2]
[365278606,1749574242805,-800.0,0.0001799,2]
[365278608,1749574242814,-800.0,0.0001799,2]
[365278610,1749574242824,-800.0,0.0001799,2]
[365278612,1749574242834,-800.0,0.0001799,2]
[365278614,1749574242844,-800.0,0.0001799,2]
[365278616,1749574242853,-800.0,0.0001799,2]
[365278618,1749574242863,-800.0,0.0001799,2]
[365278620,1749574242872,-1000.0,0.00018,18]
[365278622,1749574242881,-223.89146474,0.00018,2]
[365278624,1749574242890,-770.43475231,0.00018,2]
[365278626,1749574242900,-365.44247854,0.00018025,2]
[365278628,1749574242909,-570.10163477,0.00018034,2]
[365278631,1749574242925,-490.0,0.00016438,2]
[365278633,1749574242935,-625.89836523,0.00018034,2]
[365278635,1749574242944,-1196.0,0.00018034,2]
[365278637,1749574242953,-1196.0,0.00018034,2]
[365278639,1749574242963,-451.15022437,0.00018034,2]
[365278641,1749574242972,-250.0,0.0001805,2]
[365278643,1749574242982,-1680.0,0.00018053,2]
[365278645,1749574242991,-300.0,0.00018082,2]
[365278647,1749574243001,-934.67,0.00018082,2]
[365278649,1749574243010,-574.28,0.00018082,2]
[365278651,1749574243019,-1384.88,0.00018082,2]
[365278653,1749574243029,-490.0,0.00018082,2]
[365278655,1749574243039,-490.0,0.00018082,2]
[365278657,1749574243048,-199.4334079,0.00018082,2]
[365278660,1749574243064,-350.40764995,0.00018082,2]
[365278662,1749574243075,-271.23007319,0.00018082,2]
[365278663,1749574243086,-390.99886896,0.00018082,2]
[365278664,1749574243095,-490.0,0.00018082,2]
[365278665,1749574243104,-490.0,0.00018082,2]
[365278666,1749574243114,-490.0,0.00018082,2]
[365278667,1749574243123,-490.0,0.00018082,2]
[365278668,1749574243133,-490.0,0.00018082,2]
[365278669,1749574243144,-636.05,0.00018082,2]
[365278671,1749574243154,-490.0,0.00018082,2]
[365278673,1749574243164,-490.0,0.00018082,2]
[365278675,1749574243179,-1273.19,0.00018082,2]
[365278677,1749574243197,-1821.58,0.00018082,2]
[365278679,1749574243207,-490.0,0.00018082,2]
[365278682,1749574243216,-490.0,0.00018082,2]
[365278684,1749574243226,-561.47,0.00018082,2]
[365278686,1749574243236,-2204.71,0.00018082,2]